[Event "December 5 Late 2023"]
[Site "https://www.chess.com"]
[Date "2023.12.05"]
[Round "9"]
[White "Zivic, Dragan"]
[Black "Erzhanov, Arman"]
[Result "0-1"]
[Board "78"]
[TimeControl "180+1"]
[WhiteFideId "904740"]
[BlackFideId "4138821"]
[WhiteElo "2399"]
[BlackElo "2522"]
[WhiteTeam "SRB"]
[BlackTeam "KAZ"]
[WhiteClock "0:00:43"]
[BlackClock "0:00:23"]

1. c4 {[%clk 0:03:00]}  e5 {[%clk 0:02:55]} 2. Nc3 {[%clk 0:03:00]}  Bb4 {[%clk 0:02:52]} 3. Nd5 {[%clk 0:02:59]}  Be7 {[%clk 0:02:52]} 4. Nf3 {[%clk 0:02:57]}  d6 {[%clk 0:02:51]} 5. g3 {[%clk 0:02:56]}  Nf6 {[%clk 0:02:51]} 6. Nxe7 {[%clk 0:02:55]}  Qxe7 {[%clk 0:02:51]} 7. Bg2 {[%clk 0:02:55]}  O-O {[%clk 0:02:51]} 8. O-O {[%clk 0:02:55]}  Nc6 {[%clk 0:02:50]} 9. d3 {[%clk 0:02:55]}  Be6 {[%clk 0:02:46]} 10. e4 {[%clk 0:02:52]}  Bg4 {[%clk 0:02:44]} 11. h3 {[%clk 0:02:52]}  Bxf3 {[%clk 0:02:44]} 12. Bxf3 {[%clk 0:02:52]}  Rfe8 {[%clk 0:02:43]} 13. Be3 {[%clk 0:02:50]}  Nd7 {[%clk 0:02:43]} 14. Bg2 {[%clk 0:02:47]}  Nf8 {[%clk 0:02:43]} 15. f4 {[%clk 0:02:46]}  Ne6 {[%clk 0:02:43]} 16. f5 {[%clk 0:02:45]}  Ned4 {[%clk 0:02:43]} 17. f6 {[%clk 0:02:35]}  gxf6 {[%clk 0:02:42]} 18. Qh5 {[%clk 0:02:34]}  Kh8 {[%clk 0:02:31]} 19. Rf2 {[%clk 0:02:23]}  Rg8 {[%clk 0:02:30]} 20. Kh2 {[%clk 0:02:20]}  Rg6 {[%clk 0:02:30]} 21. Raf1 {[%clk 0:02:19]}  Rag8 {[%clk 0:02:29]} 22. g4 {[%clk 0:02:20]}  Ne6 {[%clk 0:02:25]} 23. Qh4 {[%clk 0:02:19]}  Kg7 {[%clk 0:02:10]} 24. a3 {[%clk 0:02:18]}  a5 {[%clk 0:02:07]} 25. Bf3 {[%clk 0:02:12]}  Ncd4 {[%clk 0:02:06]} 26. Bd1 {[%clk 0:02:12]}  Rh8 {[%clk 0:02:02]} 27. Kh1 {[%clk 0:02:02]}  b6 {[%clk 0:02:02]} 28. Kh2 {[%clk 0:02:02]}  h6 {[%clk 0:02:01]} 29. Kh1 {[%clk 0:02:01]}  Ng5 {[%clk 0:01:59]} 30. Qg3 {[%clk 0:01:58]}  Nge6 {[%clk 0:01:54]} 31. h4 {[%clk 0:01:54]}  h5 {[%clk 0:01:23]} 32. g5 {[%clk 0:01:52]}  fxg5 {[%clk 0:01:23]} 33. Rxf7+ {[%clk 0:01:51]}  Qxf7 {[%clk 0:01:24]} 34. Rxf7+ {[%clk 0:01:51]}  Kxf7 {[%clk 0:01:25]} 35. hxg5 {[%clk 0:01:52]}  Kg7 {[%clk 0:01:15]} 36. Qh3 {[%clk 0:01:46]}  Kg8 {[%clk 0:00:54]} 37. Ba4 {[%clk 0:01:39]}  Nxg5 {[%clk 0:00:28]} 38. Qc8+ {[%clk 0:01:37]}  Kh7 {[%clk 0:00:28]} 39. Qxc7+ {[%clk 0:01:37]}  Rg7 {[%clk 0:00:28]} 40. Qxd6 {[%clk 0:01:08]}  Ngf3 {[%clk 0:00:26]} 41. Qf6 {[%clk 0:00:59]}  Rhg8 {[%clk 0:00:25]} 42. Bxd4 {[%clk 0:00:43]}  Rg1+ {[%clk 0:00:23]} 0-1

[Event "December 5 Late 2023"]
[Site "https://www.chess.com"]
[Date "2023.12.05"]
[Round "9"]
[White "Kotyk, Michael"]
[Black "Arnold, Ken"]
[Result "0-1"]
[Board "81"]
[TimeControl "180+1"]
[WhiteFideId "16214501"]
[BlackFideId "2056836"]
[WhiteElo "2492"]
[BlackElo "2428"]
[WhiteTeam "GER"]
[BlackTeam "USA"]
[WhiteClock "0:00:31"]
[BlackClock "0:01:27"]

1. Nf3 {[%clk 0:03:00]}  d5 {[%clk 0:02:59]} 2. b3 {[%clk 0:02:59]}  Nf6 {[%clk 0:02:59]} 3. Bb2 {[%clk 0:02:59]}  Nbd7 {[%clk 0:02:59]} 4. e3 {[%clk 0:02:57]}  e6 {[%clk 0:02:58]} 5. d4 {[%clk 0:02:57]}  Bb4+ {[%clk 0:02:55]} 6. Nbd2 {[%clk 0:02:54]}  a5 {[%clk 0:02:53]} 7. a3 {[%clk 0:02:53]}  Bd6 {[%clk 0:02:48]} 8. Bd3 {[%clk 0:02:51]}  b6 {[%clk 0:02:44]} 9. Qe2 {[%clk 0:02:46]}  Bb7 {[%clk 0:02:41]} 10. Ne5 {[%clk 0:02:46]}  h5 {[%clk 0:02:37]} 11. Ndf3 {[%clk 0:02:35]}  Ng4 {[%clk 0:02:16]} 12. Bb5 {[%clk 0:01:44]}  Nxe5 {[%clk 0:02:07]} 13. Nxe5 {[%clk 0:01:34]}  Bxe5 {[%clk 0:02:06]} 14. dxe5 {[%clk 0:01:34]}  c6 {[%clk 0:02:05]} 15. Bd3 {[%clk 0:01:34]}  Nc5 {[%clk 0:02:00]} 16. O-O {[%clk 0:01:16]}  Nxd3 {[%clk 0:01:52]} 17. cxd3 {[%clk 0:01:17]}  c5 {[%clk 0:01:46]} 18. d4 {[%clk 0:01:13]}  Ba6 {[%clk 0:01:45]} 19. Qd2 {[%clk 0:00:56]}  Bxf1 {[%clk 0:01:44]} 20. Rxf1 {[%clk 0:00:57]}  Rc8 {[%clk 0:01:40]} 21. dxc5 {[%clk 0:00:57]}  Rxc5 {[%clk 0:01:38]} 22. Bd4 {[%clk 0:00:57]}  Rc6 {[%clk 0:01:37]} 23. b4 {[%clk 0:00:57]}  a4 {[%clk 0:01:34]} 24. b5 {[%clk 0:00:55]}  Rc4 {[%clk 0:01:33]} 25. Rc1 {[%clk 0:00:47]}  Qc7 {[%clk 0:01:33]} 26. Rxc4 {[%clk 0:00:44]}  Qxc4 {[%clk 0:01:32]} 27. Bxb6 {[%clk 0:00:43]}  Qxb5 {[%clk 0:01:32]} 28. Ba5 {[%clk 0:00:32]}  Qb1+ {[%clk 0:01:30]} 29. Qe1 {[%clk 0:00:33]}  Qxe1+ {[%clk 0:01:30]} 30. Bxe1 {[%clk 0:00:33]}  Kd7 {[%clk 0:01:31]} 31. Bb4 {[%clk 0:00:31]}  Rb8 {[%clk 0:01:27]} 32. h4 {[%clk 0:00:31]} 0-1

[Event "December 5 Late 2023"]
[Site "https://www.chess.com"]
[Date "2023.12.05"]
[Round "9"]
[White "Argandona Riveiro, Inigo"]
[Black "Golubenko, Valentina"]
[Result "1-0"]
[Board "84"]
[TimeControl "180+1"]
[WhiteFideId "2212072"]
[BlackFideId "4501993"]
[WhiteElo "2443"]
[BlackElo "2255"]
[WhiteTeam "ESP"]
[BlackTeam "CRO"]
[WhiteClock "0:00:27"]
[BlackClock "0:00:00"]

1. Nf3 {[%clk 0:03:00]}  e6 {[%clk 0:02:58]} 2. c4 {[%clk 0:03:01]}  c5 {[%clk 0:02:57]} 3. g3 {[%clk 0:02:59]}  g6 {[%clk 0:02:57]} 4. Bg2 {[%clk 0:03:00]}  Bg7 {[%clk 0:02:57]} 5. Nc3 {[%clk 0:03:00]}  Nc6 {[%clk 0:02:55]} 6. e3 {[%clk 0:03:00]}  Nge7 {[%clk 0:02:54]} 7. d4 {[%clk 0:02:56]}  cxd4 {[%clk 0:02:52]} 8. exd4 {[%clk 0:02:57]}  d5 {[%clk 0:02:51]} 9. cxd5 {[%clk 0:02:56]}  exd5 {[%clk 0:02:40]} 10. O-O {[%clk 0:02:53]}  O-O {[%clk 0:02:39]} 11. Re1 {[%clk 0:02:53]}  a6 {[%clk 0:02:36]} 12. Bg5 {[%clk 0:02:53]}  Qc7 {[%clk 0:02:31]} 13. Bf4 {[%clk 0:02:48]}  Qb6 {[%clk 0:02:27]} 14. Qd2 {[%clk 0:02:34]}  Bf5 {[%clk 0:02:14]} 15. Na4 {[%clk 0:02:26]}  Qd8 {[%clk 0:02:09]} 16. Nc5 {[%clk 0:02:24]}  b6 {[%clk 0:01:59]} 17. Nb7 {[%clk 0:02:22]}  Qd7 {[%clk 0:01:54]} 18. Nd6 {[%clk 0:02:21]}  Bg4 {[%clk 0:01:19]} 19. Ne5 {[%clk 0:02:17]}  Qxd6 {[%clk 0:00:58]} 20. Nxg4 {[%clk 0:02:16]}  Qd7 {[%clk 0:00:53]} 21. Ne5 {[%clk 0:02:10]}  Nxe5 {[%clk 0:00:50]} 22. Bxe5 {[%clk 0:02:09]}  Nf5 {[%clk 0:00:45]} 23. Bxg7 {[%clk 0:02:05]}  Kxg7 {[%clk 0:00:45]} 24. Re5 {[%clk 0:02:05]}  Rad8 {[%clk 0:00:36]} 25. Rxd5 {[%clk 0:01:59]}  Qc7 {[%clk 0:00:34]} 26. Rc1 {[%clk 0:01:53]}  Qe7 {[%clk 0:00:34]} 27. Rxd8 {[%clk 0:01:38]}  Rxd8 {[%clk 0:00:33]} 28. d5 {[%clk 0:01:39]}  Nd6 {[%clk 0:00:31]} 29. Qd4+ {[%clk 0:01:37]}  Kg8 {[%clk 0:00:31]} 30. Qxb6 {[%clk 0:01:37]}  Re8 {[%clk 0:00:25]} 31. h4 {[%clk 0:01:31]}  Qf6 {[%clk 0:00:12]} 32. Rc6 {[%clk 0:01:21]}  Rd8 {[%clk 0:00:09]} 33. Qxa6 {[%clk 0:01:16]}  Qe5 {[%clk 0:00:06]} 34. Qb6 {[%clk 0:01:03]}  Rd7 {[%clk 0:00:06]} 35. Rc7 {[%clk 0:00:49]}  Qe1+ {[%clk 0:00:05]} 36. Kh2 {[%clk 0:00:42]}  Qe7 {[%clk 0:00:04]} 37. Rxd7 {[%clk 0:00:39]}  Qxd7 {[%clk 0:00:04]} 38. Qc6 {[%clk 0:00:39]}  Qe7 {[%clk 0:00:04]} 39. b4 {[%clk 0:00:38]}  Kg7 {[%clk 0:00:04]} 40. b5 {[%clk 0:00:37]}  g5 {[%clk 0:00:04]} 41. hxg5 {[%clk 0:00:29]}  Nf5 {[%clk 0:00:04]} 42. Qf6+ {[%clk 0:00:28]}  Qxf6 {[%clk 0:00:03]} 43. gxf6+ {[%clk 0:00:29]}  Kxf6 {[%clk 0:00:04]} 44. d6 {[%clk 0:00:28]}  Nxd6 {[%clk 0:00:04]} 45. b6 {[%clk 0:00:28]}  Ke7 {[%clk 0:00:03]} 46. b7 {[%clk 0:00:28]}  Nxb7 {[%clk 0:00:03]} 47. Bxb7 {[%clk 0:00:29]}  Kd6 {[%clk 0:00:03]} 48. Be4 {[%clk 0:00:28]}  h6 {[%clk 0:00:02]} 49. Kh3 {[%clk 0:00:28]}  Ke5 {[%clk 0:00:02]} 50. f3 {[%clk 0:00:28]}  f5 {[%clk 0:00:00]} 51. Bb7 {[%clk 0:00:27]} 1-0

[Event "December 5 Late 2023"]
[Site "https://www.chess.com"]
[Date "2023.12.05"]
[Round "9"]
[White "Gutkin, Ilya"]
[Black "Chan, Yi Ren Daniel"]
[Result "0-1"]
[Board "86"]
[TimeControl "180+1"]
[WhiteFideId "16203470"]
[BlackFideId "5801583"]
[WhiteElo "2363"]
[BlackElo "2777"]
[WhiteTeam "GER"]
[BlackTeam "SGP"]
[WhiteClock "0:00:00"]
[BlackClock "0:00:55"]

1. e4 {[%clk 0:03:00]}  c6 {[%clk 0:02:59]} 2. Nf3 {[%clk 0:03:00]}  d5 {[%clk 0:02:52]} 3. Nc3 {[%clk 0:03:01]}  Bg4 {[%clk 0:02:53]} 4. h3 {[%clk 0:03:00]}  Bxf3 {[%clk 0:02:53]} 5. Qxf3 {[%clk 0:03:00]}  e6 {[%clk 0:02:54]} 6. d3 {[%clk 0:02:57]}  Nd7 {[%clk 0:02:52]} 7. g3 {[%clk 0:02:50]}  Bb4 {[%clk 0:02:51]} 8. Bg2 {[%clk 0:02:50]}  d4 {[%clk 0:02:51]} 9. a3 {[%clk 0:02:49]}  Ba5 {[%clk 0:02:48]} 10. b4 {[%clk 0:02:49]}  dxc3 {[%clk 0:02:48]} 11. bxa5 {[%clk 0:02:50]}  Qxa5 {[%clk 0:02:49]} 12. O-O {[%clk 0:02:50]}  Ne7 {[%clk 0:02:48]} 13. Rb1 {[%clk 0:02:49]}  b6 {[%clk 0:02:42]} 14. d4 {[%clk 0:02:36]}  O-O {[%clk 0:02:28]} 15. Rb3 {[%clk 0:02:34]}  c5 {[%clk 0:02:28]} 16. Qxc3 {[%clk 0:02:07]}  cxd4 {[%clk 0:01:50]} 17. Qxa5 {[%clk 0:02:05]}  bxa5 {[%clk 0:01:51]} 18. Rb7 {[%clk 0:01:57]}  Rfd8 {[%clk 0:01:51]} 19. e5 {[%clk 0:01:52]}  Nd5 {[%clk 0:01:48]} 20. Bxd5 {[%clk 0:01:45]}  exd5 {[%clk 0:01:49]} 21. Bf4 {[%clk 0:01:39]}  Nc5 {[%clk 0:01:47]} 22. Rc7 {[%clk 0:01:26]}  Ne6 {[%clk 0:01:47]} 23. Rb7 {[%clk 0:01:25]}  Rdc8 {[%clk 0:01:44]} 24. Rc1 {[%clk 0:00:48]}  g5 {[%clk 0:01:44]} 25. Bd2 {[%clk 0:00:47]}  Rc5 {[%clk 0:01:44]} 26. f4 {[%clk 0:00:45]}  gxf4 {[%clk 0:01:31]} 27. gxf4 {[%clk 0:00:46]}  Rac8 {[%clk 0:01:31]} 28. f5 {[%clk 0:00:41]}  Nd8 {[%clk 0:01:13]} 29. Rxa7 {[%clk 0:00:39]}  Rxc2 {[%clk 0:01:14]} 30. Rxc2 {[%clk 0:00:38]}  Rxc2 {[%clk 0:01:14]} 31. Bh6 {[%clk 0:00:15]}  Rc6 {[%clk 0:01:14]} 32. Bg5 {[%clk 0:00:12]}  Rc8 {[%clk 0:01:03]} 33. Rxa5 {[%clk 0:00:08]}  Nc6 {[%clk 0:00:58]} 34. Rxd5 {[%clk 0:00:08]}  Kg7 {[%clk 0:00:58]} 35. Kf2 {[%clk 0:00:05]}  h6 {[%clk 0:00:58]} 36. Bf6+ {[%clk 0:00:05]}  Kh7 {[%clk 0:00:56]} 37. Rd7 {[%clk 0:00:05]}  Kg8 {[%clk 0:00:57]} 38. Kf3 {[%clk 0:00:05]}  Ra8 {[%clk 0:00:57]} 39. Rc7 {[%clk 0:00:03]}  Na5 {[%clk 0:00:54]} 40. Ke4 {[%clk 0:00:03]}  Nb3 {[%clk 0:00:54]} 41. Rb7 {[%clk 0:00:02]}  Nc5+ {[%clk 0:00:54]} 42. Kxd4 {[%clk 0:00:01]}  Nxb7 {[%clk 0:00:55]} 43. Kd5 {[%clk 0:00:01]}  Rxa3 {[%clk 0:00:55]} 44. Kc6 {[%clk 0:00:00]}  Na5+ {[%clk 0:00:55]} 0-1

[Event "December 5 Late 2023"]
[Site "https://www.chess.com"]
[Date "2023.12.05"]
[Round "9"]
[White "Buenafe Moya, Javier"]
[Black "Rios Escobar, Adan"]
[Result "1-0"]
[Board "90"]
[TimeControl "180+1"]
[WhiteFideId "2206412"]
[BlackFideId "3403645"]
[WhiteElo "2364"]
[BlackElo "2439"]
[WhiteTeam "ESP"]
[BlackTeam "CHI"]
[WhiteClock "0:00:41"]
[BlackClock "0:00:00"]

1. c4 {[%clk 0:02:52]}  Nf6 {[%clk 0:02:58]} 2. Nc3 {[%clk 0:02:51]}  g6 {[%clk 0:02:58]} 3. g3 {[%clk 0:02:49]}  Bg7 {[%clk 0:02:50]} 4. Bg2 {[%clk 0:02:50]}  c5 {[%clk 0:02:20]} 5. Nh3 {[%clk 0:02:47]}  O-O {[%clk 0:02:15]} 6. O-O {[%clk 0:02:44]}  Nc6 {[%clk 0:02:13]} 7. Nf4 {[%clk 0:02:44]}  d6 {[%clk 0:02:12]} 8. Rb1 {[%clk 0:02:43]}  Bf5 {[%clk 0:01:51]} 9. d3 {[%clk 0:02:42]}  Rb8 {[%clk 0:01:42]} 10. a3 {[%clk 0:02:41]}  Ne8 {[%clk 0:01:28]} 11. Bd2 {[%clk 0:02:30]}  Qd7 {[%clk 0:01:00]} 12. b4 {[%clk 0:02:28]}  b6 {[%clk 0:00:59]} 13. bxc5 {[%clk 0:02:10]}  dxc5 {[%clk 0:00:59]} 14. Qa4 {[%clk 0:02:04]}  Nd4 {[%clk 0:00:51]} 15. Qxd7 {[%clk 0:02:01]}  Bxd7 {[%clk 0:00:52]} 16. Nfd5 {[%clk 0:01:58]}  e6 {[%clk 0:00:45]} 17. Ne7+ {[%clk 0:01:56]}  Kh8 {[%clk 0:00:45]} 18. e3 {[%clk 0:01:56]}  Nf5 {[%clk 0:00:41]} 19. Nxf5 {[%clk 0:01:45]}  gxf5 {[%clk 0:00:40]} 20. Rfd1 {[%clk 0:01:42]}  Nd6 {[%clk 0:00:39]} 21. Be1 {[%clk 0:01:37]}  Rfd8 {[%clk 0:00:38]} 22. h4 {[%clk 0:01:23]}  Be8 {[%clk 0:00:31]} 23. Nb5 {[%clk 0:01:20]}  Bxb5 {[%clk 0:00:26]} 24. cxb5 {[%clk 0:01:19]}  c4 {[%clk 0:00:25]} 25. a4 {[%clk 0:01:15]}  cxd3 {[%clk 0:00:16]} 26. Rxd3 {[%clk 0:01:14]}  Ne4 {[%clk 0:00:16]} 27. Rbd1 {[%clk 0:01:11]}  Rxd3 {[%clk 0:00:14]} 28. Rxd3 {[%clk 0:01:11]}  Nc5 {[%clk 0:00:14]} 29. Ra3 {[%clk 0:01:09]}  Bf8 {[%clk 0:00:13]} 30. Bb4 {[%clk 0:01:07]}  Rd8 {[%clk 0:00:12]} 31. a5 {[%clk 0:01:06]}  Rd1+ {[%clk 0:00:11]} 32. Kh2 {[%clk 0:01:05]}  Kg8 {[%clk 0:00:06]} 33. Rc3 {[%clk 0:00:59]}  h5 {[%clk 0:00:03]} 34. a6 {[%clk 0:00:55]}  Kh7 {[%clk 0:00:01]} 35. Bxc5 {[%clk 0:00:53]}  Bxc5 {[%clk 0:00:01]} 36. Rxc5 {[%clk 0:00:49]}  bxc5 {[%clk 0:00:01]} 37. b6 {[%clk 0:00:48]}  axb6 {[%clk 0:00:01]} 38. a7 {[%clk 0:00:48]}  Ra1 {[%clk 0:00:02]} 39. a8=Q {[%clk 0:00:48]}  Rxa8 {[%clk 0:00:03]} 40. Bxa8 {[%clk 0:00:47]}  c4 {[%clk 0:00:03]} 41. Bc6 {[%clk 0:00:45]}  c3 {[%clk 0:00:03]} 42. Ba4 {[%clk 0:00:45]}  b5 {[%clk 0:00:03]} 43. Bc2 {[%clk 0:00:45]}  b4 {[%clk 0:00:03]} 44. Kg2 {[%clk 0:00:45]}  Kg7 {[%clk 0:00:04]} 45. Kf3 {[%clk 0:00:45]}  Kf6 {[%clk 0:00:05]} 46. Ke2 {[%clk 0:00:46]}  Ke5 {[%clk 0:00:05]} 47. Kd3 {[%clk 0:00:46]}  Kd5 {[%clk 0:00:06]} 48. Bb3+ {[%clk 0:00:45]}  Kc5 {[%clk 0:00:06]} 49. e4 {[%clk 0:00:44]}  fxe4+ {[%clk 0:00:01]} 50. Kxe4 {[%clk 0:00:44]}  f6 {[%clk 0:00:00]} 51. g4 {[%clk 0:00:41]} 1-0

[Event "December 5 Late 2023"]
[Site "https://www.chess.com"]
[Date "2023.12.05"]
[Round "9"]
[White "Rose, Felix"]
[Black "Skaric, Djuro"]
[Result "0-1"]
[Board "91"]
[TimeControl "180+1"]
[WhiteFideId "5105722"]
[BlackFideId "934569"]
[WhiteElo "2310"]
[BlackElo "2398"]
[WhiteTeam "MEX"]
[BlackTeam "SRB"]
[WhiteClock "0:00:00"]
[BlackClock "0:01:34"]

1. e4 {[%clk 0:02:59]}  d6 {[%clk 0:03:00]} 2. d4 {[%clk 0:02:59]}  g6 {[%clk 0:03:01]} 3. Nc3 {[%clk 0:02:57]}  Bg7 {[%clk 0:03:01]} 4. Nf3 {[%clk 0:02:57]}  Nf6 {[%clk 0:03:02]} 5. h3 {[%clk 0:02:57]}  O-O {[%clk 0:03:02]} 6. Be3 {[%clk 0:02:58]}  Nc6 {[%clk 0:03:02]} 7. Be2 {[%clk 0:02:55]}  e5 {[%clk 0:03:02]} 8. O-O {[%clk 0:02:54]}  Nd7 {[%clk 0:03:03]} 9. Qd2 {[%clk 0:02:48]}  f5 {[%clk 0:03:01]} 10. exf5 {[%clk 0:02:49]}  gxf5 {[%clk 0:03:01]} 11. dxe5 {[%clk 0:02:47]}  dxe5 {[%clk 0:03:02]} 12. Bh6 {[%clk 0:02:35]}  e4 {[%clk 0:02:57]} 13. Bc4+ {[%clk 0:02:31]}  Kh8 {[%clk 0:02:57]} 14. Bxg7+ {[%clk 0:02:18]}  Kxg7 {[%clk 0:02:56]} 15. Nd4 {[%clk 0:02:13]}  Nde5 {[%clk 0:02:50]} 16. Bd5 {[%clk 0:02:02]}  Qf6 {[%clk 0:02:38]} 17. Bxc6 {[%clk 0:01:55]}  bxc6 {[%clk 0:02:37]} 18. Rad1 {[%clk 0:01:45]}  Kh8 {[%clk 0:02:32]} 19. f4 {[%clk 0:01:42]}  Ng6 {[%clk 0:02:28]} 20. Na4 {[%clk 0:01:24]}  Ba6 {[%clk 0:02:27]} 21. Rfe1 {[%clk 0:01:18]}  Rad8 {[%clk 0:02:16]} 22. Nc5 {[%clk 0:01:16]}  Bc8 {[%clk 0:02:16]} 23. c3 {[%clk 0:01:07]}  Qd6 {[%clk 0:02:06]} 24. b4 {[%clk 0:00:41]}  Nxf4 {[%clk 0:02:05]} 25. Qb2 {[%clk 0:00:18]}  Rg8 {[%clk 0:02:02]} 26. Rd2 {[%clk 0:00:17]}  Nxh3+ {[%clk 0:01:58]} 27. Kh1 {[%clk 0:00:18]}  Qg3 {[%clk 0:01:54]} 28. Rf1 {[%clk 0:00:14]}  e3 {[%clk 0:01:44]} 29. Re2 {[%clk 0:00:13]}  Nf2+ {[%clk 0:01:42]} 30. Rfxf2 {[%clk 0:00:14]}  exf2 {[%clk 0:01:42]} 31. Rxf2 {[%clk 0:00:15]}  Qe5 {[%clk 0:01:36]} 32. c4 {[%clk 0:00:00]}  Rxd4 {[%clk 0:01:34]} 0-1

[Event "December 5 Late 2023"]
[Site "https://www.chess.com"]
[Date "2023.12.05"]
[Round "9"]
[White "Marcziter, Dmitrii"]
[Black "Chlpik, Martin"]
[Result "1-0"]
[Board "94"]
[TimeControl "180+1"]
[WhiteFideId "13900765"]
[BlackFideId "14923351"]
[WhiteElo "2383"]
[BlackElo "2267"]
[WhiteTeam "GER"]
[BlackTeam "SVK"]
[WhiteClock "0:00:56"]
[BlackClock "0:00:19"]

1. d4 {[%clk 0:03:00]}  Nf6 {[%clk 0:02:20]} 2. c4 {[%clk 0:02:59]}  c5 {[%clk 0:02:19]} 3. d5 {[%clk 0:02:59]}  e6 {[%clk 0:02:20]} 4. Nc3 {[%clk 0:02:58]}  exd5 {[%clk 0:02:20]} 5. cxd5 {[%clk 0:02:58]}  d6 {[%clk 0:02:21]} 6. Nf3 {[%clk 0:02:58]}  g6 {[%clk 0:02:21]} 7. Nd2 {[%clk 0:02:59]}  Bg7 {[%clk 0:02:21]} 8. Nc4 {[%clk 0:03:00]}  O-O {[%clk 0:02:20]} 9. Bf4 {[%clk 0:03:00]}  Nh5 {[%clk 0:02:11]} 10. Bxd6 {[%clk 0:02:43]}  b5 {[%clk 0:02:11]} 11. Bxf8 {[%clk 0:02:39]}  Qxf8 {[%clk 0:02:08]} 12. Nxb5 {[%clk 0:02:33]}  Ba6 {[%clk 0:02:05]} 13. a4 {[%clk 0:02:32]}  Nd7 {[%clk 0:02:00]} 14. e3 {[%clk 0:02:26]}  Rd8 {[%clk 0:01:51]} 15. Be2 {[%clk 0:02:22]}  Nhf6 {[%clk 0:01:47]} 16. O-O {[%clk 0:02:20]}  Nb6 {[%clk 0:01:33]} 17. Nxb6 {[%clk 0:02:13]}  axb6 {[%clk 0:01:31]} 18. Bc4 {[%clk 0:02:12]}  Ne4 {[%clk 0:01:24]} 19. Qc2 {[%clk 0:02:09]}  f5 {[%clk 0:01:23]} 20. Rad1 {[%clk 0:02:05]}  Bxb5 {[%clk 0:01:19]} 21. Bxb5 {[%clk 0:01:58]}  Nd6 {[%clk 0:01:20]} 22. Bc6 {[%clk 0:01:57]}  Qe7 {[%clk 0:01:10]} 23. b3 {[%clk 0:01:55]}  Qh4 {[%clk 0:01:09]} 24. g3 {[%clk 0:01:54]}  Qh3 {[%clk 0:01:06]} 25. Qe2 {[%clk 0:01:48]}  Qh6 {[%clk 0:00:52]} 26. Qf3 {[%clk 0:01:39]}  g5 {[%clk 0:00:50]} 27. Rc1 {[%clk 0:01:34]}  Be5 {[%clk 0:00:49]} 28. a5 {[%clk 0:01:31]}  bxa5 {[%clk 0:00:45]} 29. Rxc5 {[%clk 0:01:30]}  g4 {[%clk 0:00:45]} 30. Qg2 {[%clk 0:01:27]}  Nf7 {[%clk 0:00:44]} 31. d6 {[%clk 0:01:22]}  Qxd6 {[%clk 0:00:43]} 32. Rxa5 {[%clk 0:01:07]}  Qb4 {[%clk 0:00:35]} 33. Rd5 {[%clk 0:01:02]}  Rf8 {[%clk 0:00:32]} 34. Rb5 {[%clk 0:00:59]}  Qd2 {[%clk 0:00:27]} 35. Bd5 {[%clk 0:00:57]}  Kh8 {[%clk 0:00:21]} 36. Bxf7 {[%clk 0:00:56]}  Rxf7 {[%clk 0:00:19]} 37. Rxe5 {[%clk 0:00:56]} 1-0

[Event "December 5 Late 2023"]
[Site "https://www.chess.com"]
[Date "2023.12.05"]
[Round "9"]
[White "Mickiewicz, Piotr"]
[Black "De Souza, Cristiano Gomes"]
[Result "1-0"]
[Board "95"]
[TimeControl "180+1"]
[WhiteFideId "1114891"]
[BlackFideId "2151758"]
[WhiteElo "2383"]
[BlackElo "2233"]
[WhiteTeam "POL"]
[BlackTeam "BRA"]
[WhiteClock "0:00:42"]
[BlackClock "0:00:03"]

1. g3 {[%clk 0:03:00]}  Nf6 {[%clk 0:02:50]} 2. Bg2 {[%clk 0:03:01]}  g6 {[%clk 0:02:44]} 3. c4 {[%clk 0:03:00]}  Bg7 {[%clk 0:02:44]} 4. Nc3 {[%clk 0:03:00]}  d6 {[%clk 0:02:43]} 5. d4 {[%clk 0:02:59]}  O-O {[%clk 0:02:43]} 6. e4 {[%clk 0:02:56]}  Nc6 {[%clk 0:02:42]} 7. Nge2 {[%clk 0:02:36]}  e5 {[%clk 0:02:29]} 8. d5 {[%clk 0:02:35]}  Ne7 {[%clk 0:02:25]} 9. f3 {[%clk 0:02:28]}  Bd7 {[%clk 0:02:20]} 10. Be3 {[%clk 0:02:28]}  a6 {[%clk 0:02:19]} 11. a4 {[%clk 0:02:16]}  Qc8 {[%clk 0:02:18]} 12. a5 {[%clk 0:02:11]}  Bh3 {[%clk 0:02:08]} 13. O-O {[%clk 0:02:10]}  Bxg2 {[%clk 0:02:07]} 14. Kxg2 {[%clk 0:02:11]}  Ne8 {[%clk 0:02:03]} 15. b4 {[%clk 0:02:06]}  f5 {[%clk 0:02:02]} 16. c5 {[%clk 0:02:04]}  h6 {[%clk 0:01:57]} 17. Qd3 {[%clk 0:01:57]}  Qd7 {[%clk 0:01:44]} 18. b5 {[%clk 0:01:51]}  axb5 {[%clk 0:01:38]} 19. Qxb5 {[%clk 0:01:51]}  Qxb5 {[%clk 0:01:27]} 20. Nxb5 {[%clk 0:01:51]}  g5 {[%clk 0:01:23]} 21. cxd6 {[%clk 0:01:39]}  cxd6 {[%clk 0:01:17]} 22. Rfc1 {[%clk 0:01:39]}  fxe4 {[%clk 0:01:15]} 23. fxe4 {[%clk 0:01:37]}  Rd8 {[%clk 0:01:12]} 24. Rc4 {[%clk 0:01:18]}  Rd7 {[%clk 0:00:57]} 25. Nec3 {[%clk 0:01:18]}  Nf6 {[%clk 0:00:55]} 26. h3 {[%clk 0:01:10]}  Rc8 {[%clk 0:00:33]} 27. Rxc8+ {[%clk 0:01:04]}  Nxc8 {[%clk 0:00:33]} 28. Ra4 {[%clk 0:01:05]}  Ne7 {[%clk 0:00:29]} 29. Rc4 {[%clk 0:01:05]}  Kh7 {[%clk 0:00:28]} 30. Na4 {[%clk 0:01:04]}  Ne8 {[%clk 0:00:24]} 31. Nb6 {[%clk 0:01:03]}  Rd8 {[%clk 0:00:23]} 32. Nc7 {[%clk 0:01:00]}  Nf6 {[%clk 0:00:19]} 33. Ne6 {[%clk 0:00:59]}  Rg8 {[%clk 0:00:18]} 34. g4 {[%clk 0:00:56]}  Ng6 {[%clk 0:00:18]} 35. Kf3 {[%clk 0:00:56]}  Nf4 {[%clk 0:00:16]} 36. Rc7 {[%clk 0:00:52]}  Kg6 {[%clk 0:00:16]} 37. Bxf4 {[%clk 0:00:47]}  exf4 {[%clk 0:00:13]} 38. Rxb7 {[%clk 0:00:48]}  h5 {[%clk 0:00:10]} 39. Rxg7+ {[%clk 0:00:45]}  Rxg7 {[%clk 0:00:09]} 40. Nxg7 {[%clk 0:00:46]}  Kxg7 {[%clk 0:00:10]} 41. a6 {[%clk 0:00:46]}  hxg4+ {[%clk 0:00:09]} 42. hxg4 {[%clk 0:00:45]}  Ne8 {[%clk 0:00:07]} 43. a7 {[%clk 0:00:43]}  Nc7 {[%clk 0:00:07]} 44. a8=Q {[%clk 0:00:42]}  Nxa8 {[%clk 0:00:08]} 45. Nxa8 {[%clk 0:00:42]}  Kf6 {[%clk 0:00:09]} 46. Nc7 {[%clk 0:00:43]}  Ke5 {[%clk 0:00:03]} 47. Ne8 {[%clk 0:00:42]} 1-0

[Event "December 5 Late 2023"]
[Site "https://www.chess.com"]
[Date "2023.12.05"]
[Round "9"]
[White "Clawitter, Craig"]
[Black "Pein, Jonathan"]
[Result "0-1"]
[Board "96"]
[TimeControl "180+1"]
[WhiteFideId "2023105"]
[BlackFideId "417092"]
[WhiteElo "2225"]
[BlackElo "2377"]
[WhiteTeam "USA"]
[BlackTeam "ENG"]
[WhiteClock "0:01:30"]
[BlackClock "0:01:32"]

1. e4 {[%clk 0:02:57]}  e5 {[%clk 0:02:59]} 2. Nf3 {[%clk 0:02:57]}  d6 {[%clk 0:03:00]} 3. d4 {[%clk 0:02:56]}  exd4 {[%clk 0:03:01]} 4. Nxd4 {[%clk 0:02:56]}  Nf6 {[%clk 0:03:01]} 5. Nc3 {[%clk 0:02:57]}  g6 {[%clk 0:03:02]} 6. Be3 {[%clk 0:02:56]}  Bg7 {[%clk 0:03:02]} 7. f3 {[%clk 0:02:56]}  O-O {[%clk 0:03:02]} 8. Qd2 {[%clk 0:02:56]}  d5 {[%clk 0:03:03]} 9. O-O-O {[%clk 0:02:45]}  c5 {[%clk 0:03:03]} 10. Ndb5 {[%clk 0:02:28]}  d4 {[%clk 0:03:02]} 11. Qe1 {[%clk 0:02:29]}  Qa5 {[%clk 0:02:20]} 12. Nxd4 {[%clk 0:02:28]}  cxd4 {[%clk 0:02:19]} 13. Bxd4 {[%clk 0:02:29]}  Nc6 {[%clk 0:02:20]} 14. Bxf6 {[%clk 0:02:27]}  Bxf6 {[%clk 0:02:19]} 15. Nd5 {[%clk 0:02:27]}  Bg7 {[%clk 0:02:02]} 16. Ne7+ {[%clk 0:02:00]}  Kh8 {[%clk 0:01:57]} 17. Nxc6 {[%clk 0:01:53]}  Qxa2 {[%clk 0:01:46]} 18. c3 {[%clk 0:01:41]}  bxc6 {[%clk 0:01:42]} 19. h4 {[%clk 0:01:40]}  Be6 {[%clk 0:01:38]} 20. h5 {[%clk 0:01:30]}  Bh6+ {[%clk 0:01:32]} 0-1